[Event "Late-Titled-Tuesday-Blitz-May-14-2024"]
[Site "Chess.com"]
[Date "2024.05.14"]
[Round "4"]
[White "azikom"]
[Black "TheAlienParty"]
[Result "1-0"]
[WhiteElo "2700"]
[BlackElo "2429"]
[TimeControl "180+1"]
[EndTime "14:39:52 PDT"]
[Termination "azikom won by resignation"]

1. d4 {[%clk 0:02:58.9]} 1... Nf6 {[%clk 0:02:58.4]} 2. c4 {[%clk 0:02:53.3]}
2... e6 {[%clk 0:02:57.5]} 3. Nc3 {[%clk 0:02:48.2]} 3... Bb4 {[%clk 0:02:56.9]}
4. e3 {[%clk 0:02:47.6]} 4... O-O {[%clk 0:02:54.5]} 5. Ne2 {[%clk 0:02:46.1]}
5... d5 {[%clk 0:02:51.8]} 6. a3 {[%clk 0:02:45.2]} 6... Be7 {[%clk 0:02:51.4]}
7. Ng3 {[%clk 0:02:44.2]} 7... dxc4 {[%clk 0:02:48.8]} 8. Bxc4 {[%clk
0:02:43.9]} 8... c5 {[%clk 0:02:48.8]} 9. d5 {[%clk 0:02:43.7]} 9... exd5 {[%clk
0:02:47.1]} 10. Nxd5 {[%clk 0:02:44.6]} 10... Nxd5 {[%clk 0:02:46.3]} 11. Bxd5
{[%clk 0:02:44.5]} 11... Qc7 {[%clk 0:02:40.7]} 12. O-O {[%clk 0:02:42.9]} 12...
Rd8 {[%clk 0:02:39.9]} 13. Qh5 {[%clk 0:02:35.7]} 13... g6 {[%clk 0:02:38.2]}
14. Qf3 {[%clk 0:02:34.9]} 14... Nc6 {[%clk 0:02:32.2]} 15. Qxf7+ {[%clk
0:02:27.9]} 15... Kh8 {[%clk 0:02:29.6]} 16. Bxc6 {[%clk 0:00:31.9]} 16... bxc6
{[%clk 0:02:23.3]} 17. b4 {[%clk 0:00:31.6]} 17... Qe5 {[%clk 0:01:33.2]} 18.
Bb2 {[%clk 0:00:30.8]} 18... Qxb2 {[%clk 0:01:32.2]} 19. Qxe7 {[%clk 0:00:31.3]}
19... Ba6 {[%clk 0:01:26.9]} 20. Rfb1 {[%clk 0:00:29.3]} 20... Qg7 {[%clk
0:01:25.5]} 21. Qxc5 {[%clk 0:00:28.5]} 21... Bd3 {[%clk 0:01:21.3]} 22. Rc1
{[%clk 0:00:27.2]} 22... h5 {[%clk 0:01:19.8]} 23. h4 {[%clk 0:00:25.9]} 23...
Rac8 {[%clk 0:01:17.4]} 24. Qc3 {[%clk 0:00:25.3]} 24... Bb5 {[%clk 0:01:05]}
25. Qxg7+ {[%clk 0:00:24.3]} 25... Kxg7 {[%clk 0:01:05.2]} 26. Ne4 {[%clk
0:00:23.4]} 26... Bd3 {[%clk 0:01:01.5]} 27. Nc5 {[%clk 0:00:22]} 27... Bf5
{[%clk 0:00:58.9]} 28. Ra2 {[%clk 0:00:21.4]} 28... Kf6 {[%clk 0:00:57]} 29. e4
{[%clk 0:00:20.4]} 29... Be6 {[%clk 0:00:56.5]} 30. Nxe6 {[%clk 0:00:20.1]}
30... Kxe6 {[%clk 0:00:56.5]} 31. Rc5 {[%clk 0:00:19.8]} 31... Rd4 {[%clk
0:00:53.3]} 32. f3 {[%clk 0:00:20]} 32... Rd1+ {[%clk 0:00:51.9]} 33. Kh2 {[%clk
0:00:20.4]} 33... Kd6 {[%clk 0:00:49.5]} 34. Kg3 {[%clk 0:00:20.4]} 34... Re8
{[%clk 0:00:44.8]} 35. Ra5 {[%clk 0:00:19.8]} 35... Re7 {[%clk 0:00:44.2]} 36.
Rc2 {[%clk 0:00:19.2]} 36... Rc7 {[%clk 0:00:43.1]} 37. Rg5 {[%clk 0:00:18.4]}
37... Rg7 {[%clk 0:00:42.1]} 38. Rgc5 {[%clk 0:00:18.8]} 38... Rc7 {[%clk
0:00:41.9]} 39. b5 {[%clk 0:00:18.8]} 39... Ra1 {[%clk 0:00:41.5]} 40. Rxc6+
{[%clk 0:00:18.8]} 40... Rxc6 {[%clk 0:00:41.7]} 41. Rxc6+ {[%clk 0:00:19.7]}
41... Ke5 {[%clk 0:00:41.9]} 42. Ra6 {[%clk 0:00:19.5]} 42... Rb1 {[%clk
0:00:41.7]} 43. a4 {[%clk 0:00:19.3]} 43... Kd4 {[%clk 0:00:39.8]} 44. Rxa7
{[%clk 0:00:19.2]} 44... Ke3 {[%clk 0:00:40.1]} 45. Rc7 {[%clk 0:00:18.7]} 45...
Ke2 {[%clk 0:00:40.1]} 46. Rc2+ {[%clk 0:00:18.2]} 46... Kf1 {[%clk 0:00:40.3]}
47. Ra2 {[%clk 0:00:17.9]} 47... Kg1 {[%clk 0:00:37.5]} 48. Kf4 {[%clk
0:00:17.6]} 48... Kh2 {[%clk 0:00:37.2]} 49. Kg5 {[%clk 0:00:17.7]} 49... Kg3
{[%clk 0:00:37]} 50. e5 {[%clk 0:00:17.6]} 50... Rb4 {[%clk 0:00:36.4]} 51. Kxg6
{[%clk 0:00:16.5]} 51... Kxh4 {[%clk 0:00:35.9]} 52. e6 {[%clk 0:00:16.6]} 52...
Rb1 {[%clk 0:00:35.4]} 53. e7 {[%clk 0:00:16.5]} 53... Re1 {[%clk 0:00:35.1]}
54. Kf7 {[%clk 0:00:17]} 54... Kg3 {[%clk 0:00:33.9]} 55. e8=Q {[%clk
0:00:17.1]} 1-0

[Event "Late-Titled-Tuesday-Blitz-May-14-2024"]
[Site "Chess.com"]
[Date "2024.05.14"]
[Round "4"]
[White "Balla_Tamas"]
[Black "Fjal"]
[Result "1-0"]
[WhiteElo "2529"]
[BlackElo "2341"]
[TimeControl "180+1"]
[EndTime "14:39:53 PDT"]
[Termination "Balla_Tamas won on time"]

1. Nf3 {[%clk 0:03:00.9]} 1... Nf6 {[%clk 0:02:48.2]} 2. b3 {[%clk 0:03:00.2]}
2... g6 {[%clk 0:02:48.2]} 3. Bb2 {[%clk 0:03:00.5]} 3... Bg7 {[%clk 0:02:49.1]}
4. e3 {[%clk 0:03:01]} 4... d5 {[%clk 0:02:47]} 5. c4 {[%clk 0:03:01.3]} 5... c6
{[%clk 0:02:46.9]} 6. Nc3 {[%clk 0:03:01.2]} 6... O-O {[%clk 0:02:46.3]} 7. Be2
{[%clk 0:03:01.4]} 7... a6 {[%clk 0:02:42.8]} 8. O-O {[%clk 0:03:01.2]} 8... Re8
{[%clk 0:02:42.9]} 9. d4 {[%clk 0:03:00.8]} 9... Nbd7 {[%clk 0:02:42.7]} 10. Re1
{[%clk 0:02:54.1]} 10... e5 {[%clk 0:02:42.4]} 11. cxd5 {[%clk 0:02:53.5]} 11...
exd4 {[%clk 0:02:25.7]} 12. dxc6 {[%clk 0:02:46.8]} 12... dxc3 {[%clk
0:02:25.5]} 13. cxd7 {[%clk 0:02:46.9]} 13... Nxd7 {[%clk 0:02:25.4]} 14. Ba3
{[%clk 0:02:38.7]} 14... Ne5 {[%clk 0:02:14.6]} 15. Rc1 {[%clk 0:02:23.6]} 15...
b5 {[%clk 0:02:09.8]} 16. Nxe5 {[%clk 0:02:17.7]} 16... Bxe5 {[%clk 0:02:09.2]}
17. Bf3 {[%clk 0:02:16.2]} 17... Ra7 {[%clk 0:02:06.9]} 18. Bb4 {[%clk
0:02:15.2]} 18... Rd7 {[%clk 0:02:01.4]} 19. Qc2 {[%clk 0:02:07.6]} 19... Rd2
{[%clk 0:01:57.7]} 20. Qb1 {[%clk 0:01:59.1]} 20... Rb2 {[%clk 0:01:43.6]} 21.
Qa1 {[%clk 0:01:53.7]} 21... c2 {[%clk 0:01:36.9]} 22. a4 {[%clk 0:01:28.3]}
22... Qh4 {[%clk 0:01:18.4]} 23. Bd6 {[%clk 0:01:16.4]} 23... Rb1 {[%clk
0:00:33.5]} 24. Bxe5 {[%clk 0:00:55.8]} 24... Rxa1 {[%clk 0:00:32.8]} 25. Bxa1
{[%clk 0:00:56.7]} 25... Bf5 {[%clk 0:00:31.6]} 26. e4 {[%clk 0:00:53.2]} 26...
Be6 {[%clk 0:00:25]} 27. axb5 {[%clk 0:00:49.1]} 27... Bxb3 {[%clk 0:00:25.2]}
28. bxa6 {[%clk 0:00:48.3]} 28... Ra8 {[%clk 0:00:20.5]} 29. Re3 {[%clk
0:00:40.3]} 29... Qg5 {[%clk 0:00:14.6]} 30. h4 {[%clk 0:00:37.7]} 30... Qb5
{[%clk 0:00:11.6]} 31. Be2 {[%clk 0:00:34.6]} 31... Qb4 {[%clk 0:00:11.9]} 32.
Bc3 {[%clk 0:00:33.3]} 32... Qa4 {[%clk 0:00:11.2]} 33. e5 {[%clk 0:00:28.8]}
33... Rc8 {[%clk 0:00:09.3]} 34. Bd2 {[%clk 0:00:17.9]} 34... Qd4 {[%clk
0:00:08.7]} 35. Rd3 {[%clk 0:00:08.9]} 35... Qxe5 {[%clk 0:00:09]} 36. Be3
{[%clk 0:00:09.1]} 36... Ba4 {[%clk 0:00:08.2]} 37. a7 {[%clk 0:00:09.1]} 37...
Qb2 {[%clk 0:00:06]} 38. Bf3 {[%clk 0:00:08.3]} 38... Re8 {[%clk 0:00:02.8]} 39.
a8=Q {[%clk 0:00:08.7]} 39... Rxa8 {[%clk 0:00:03.1]} 40. Bxa8 {[%clk
0:00:09.6]} 40... h5 {[%clk 0:00:02.2]} 41. Rd8+ {[%clk 0:00:10.1]} 41... Kg7
{[%clk 0:00:01.9]} 42. Bd4+ {[%clk 0:00:10.5]} 1-0

[Event "Late-Titled-Tuesday-Blitz-May-14-2024"]
[Site "Chess.com"]
[Date "2024.05.14"]
[Round "4"]
[White "FLamps8"]
[Black "bobo_panda"]
[Result "1-0"]
[WhiteElo "2678"]
[BlackElo "2439"]
[TimeControl "180+1"]
[EndTime "14:39:55 PDT"]
[Termination "FLamps8 won by checkmate"]

1. d4 {[%clk 0:02:53.7]} 1... Nf6 {[%clk 0:02:59.2]} 2. Bf4 {[%clk 0:02:51.7]}
2... d5 {[%clk 0:02:59]} 3. Nc3 {[%clk 0:02:49.5]} 3... c5 {[%clk 0:02:57.3]} 4.
e3 {[%clk 0:02:45.9]} 4... cxd4 {[%clk 0:02:56.9]} 5. exd4 {[%clk 0:02:46.8]}
5... a6 {[%clk 0:02:56.8]} 6. Nf3 {[%clk 0:02:45.6]} 6... Nc6 {[%clk 0:02:57.1]}
7. Ne5 {[%clk 0:02:44.8]} 7... Bf5 {[%clk 0:02:56]} 8. g4 {[%clk 0:02:43.9]}
8... Bg6 {[%clk 0:02:56.2]} 9. h4 {[%clk 0:02:43.2]} 9... Nxe5 {[%clk
0:02:50.3]} 10. dxe5 {[%clk 0:02:41.8]} 10... Ne4 {[%clk 0:02:50.3]} 11. h5
{[%clk 0:02:37.8]} 11... Nxc3 {[%clk 0:02:49.9]} 12. bxc3 {[%clk 0:02:38.7]}
12... Qa5 {[%clk 0:02:43.7]} 13. hxg6 {[%clk 0:02:30]} 13... Qxc3+ {[%clk
0:02:43.6]} 14. Bd2 {[%clk 0:02:30.6]} 14... Qxe5+ {[%clk 0:02:43.7]} 15. Be3
{[%clk 0:02:31.2]} 15... Qc3+ {[%clk 0:02:42]} 16. Bd2 {[%clk 0:02:12]} 16...
Qe5+ {[%clk 0:02:41.8]} 17. Be2 {[%clk 0:02:12.6]} 17... fxg6 {[%clk 0:02:42.4]}
18. Rb1 {[%clk 0:02:11.2]} 18... b5 {[%clk 0:02:41.5]} 19. a4 {[%clk 0:02:08.9]}
19... e6 {[%clk 0:02:36.4]} 20. axb5 {[%clk 0:02:07]} 20... Bc5 {[%clk
0:02:32.7]} 21. Bb4 {[%clk 0:01:44.5]} 21... Bxb4+ {[%clk 0:02:07.7]} 22. Rxb4
{[%clk 0:01:45.4]} 22... Qc3+ {[%clk 0:02:08.2]} 23. Qd2 {[%clk 0:01:45.2]}
23... Qa1+ {[%clk 0:02:08.8]} 24. Bd1 {[%clk 0:01:44]} 24... axb5 {[%clk
0:02:09.1]} 25. Rf4 {[%clk 0:01:25.3]} 25... Qe5+ {[%clk 0:02:00.6]} 26. Qe3
{[%clk 0:01:24.9]} 26... Qxe3+ {[%clk 0:02:00.7]} 27. fxe3 {[%clk 0:01:25.8]}
27... Ra1 {[%clk 0:02:00.4]} 28. O-O {[%clk 0:01:21.6]} 28... Ra4 {[%clk
0:01:43.2]} 29. Be2 {[%clk 0:01:10.1]} 29... Rxf4 {[%clk 0:01:36.5]} 30. Bxb5+
{[%clk 0:01:09.5]} 30... Ke7 {[%clk 0:01:37]} 31. exf4 {[%clk 0:01:09.9]} 31...
Rc8 {[%clk 0:01:36.3]} 32. Bd3 {[%clk 0:01:09.8]} 32... Rb8 {[%clk 0:01:30.4]}
33. Kg2 {[%clk 0:01:08.6]} 33... Rb4 {[%clk 0:01:25.5]} 34. Kg3 {[%clk
0:01:08.3]} 34... Kf6 {[%clk 0:01:19.1]} 35. g5+ {[%clk 0:01:06.6]} 35... Kf7
{[%clk 0:01:18.2]} 36. Rh1 {[%clk 0:01:05.8]} 36... Kg8 {[%clk 0:01:17.7]} 37.
Ra1 {[%clk 0:01:04.7]} 37... Rb8 {[%clk 0:01:08.5]} 38. Ra7 {[%clk 0:01:01.8]}
38... Kf8 {[%clk 0:01:05.6]} 39. Kf3 {[%clk 0:00:58.8]} 39... Rb1 {[%clk
0:01:02.4]} 40. Ke3 {[%clk 0:00:57.4]} 40... Re1+ {[%clk 0:01:01.9]} 41. Kd4
{[%clk 0:00:57.4]} 41... Kg8 {[%clk 0:00:49.3]} 42. Kc5 {[%clk 0:00:52.6]} 42...
e5 {[%clk 0:00:49.3]} 43. Re7 {[%clk 0:00:36.4]} 43... e4 {[%clk 0:00:46.8]} 44.
Kxd5 {[%clk 0:00:33.7]} 44... e3 {[%clk 0:00:36.4]} 45. Kd4 {[%clk 0:00:32.2]}
45... h5 {[%clk 0:00:35.2]} 46. Bxg6 {[%clk 0:00:27.2]} 46... Rd1+ {[%clk
0:00:34.7]} 47. Kc3 {[%clk 0:00:26.7]} 47... Rd8 {[%clk 0:00:34]} 48. Rxe3
{[%clk 0:00:21.3]} 48... Rc8+ {[%clk 0:00:34]} 49. Kd2 {[%clk 0:00:20.5]} 49...
Rd8+ {[%clk 0:00:34.4]} 50. Ke2 {[%clk 0:00:19.7]} 50... Rc8 {[%clk 0:00:33.6]}
51. Re8+ {[%clk 0:00:19.3]} 51... Rxe8+ {[%clk 0:00:33.5]} 52. Bxe8 {[%clk
0:00:20.2]} 52... h4 {[%clk 0:00:33.1]} 53. Kf3 {[%clk 0:00:20.2]} 53... Kf8
{[%clk 0:00:34]} 54. Bh5 {[%clk 0:00:19.7]} 54... Ke7 {[%clk 0:00:34.9]} 55. Kg4
{[%clk 0:00:19.1]} 55... Kd6 {[%clk 0:00:35.8]} 56. Kxh4 {[%clk 0:00:19.5]}
56... Kd5 {[%clk 0:00:36.7]} 57. Kg4 {[%clk 0:00:20.4]} 57... Ke4 {[%clk
0:00:36.9]} 58. f5 {[%clk 0:00:21.1]} 58... Ke5 {[%clk 0:00:37.8]} 59. c4 {[%clk
0:00:21.1]} 59... Kd6 {[%clk 0:00:37.4]} 60. Kf4 {[%clk 0:00:20.8]} 60... Kd7
{[%clk 0:00:36.3]} 61. Ke5 {[%clk 0:00:21.7]} 61... Kc6 {[%clk 0:00:36.7]} 62.
f6 {[%clk 0:00:21]} 62... gxf6+ {[%clk 0:00:37.5]} 63. gxf6 {[%clk 0:00:21.6]}
63... Kd7 {[%clk 0:00:38]} 64. c5 {[%clk 0:00:21.4]} 64... Kc7 {[%clk
0:00:37.8]} 65. f7 {[%clk 0:00:20.9]} 65... Kd7 {[%clk 0:00:38.3]} 66. f8=Q
{[%clk 0:00:20.8]} 66... Kc7 {[%clk 0:00:38.2]} 67. Qd6+ {[%clk 0:00:21.2]}
67... Kb7 {[%clk 0:00:38.3]} 68. Qb6+ {[%clk 0:00:20.9]} 68... Ka8 {[%clk
0:00:39.1]} 69. Qb5 {[%clk 0:00:21.2]} 69... Ka7 {[%clk 0:00:39.3]} 70. Kd6
{[%clk 0:00:20.9]} 70... Ka8 {[%clk 0:00:40.2]} 71. Kc7 {[%clk 0:00:21.2]} 71...
Ka7 {[%clk 0:00:41.1]} 72. Qa5# {[%clk 0:00:22]} 1-0

[Event "Late-Titled-Tuesday-Blitz-May-14-2024"]
[Site "Chess.com"]
[Date "2024.05.14"]
[Round "4"]
[White "Kacparov"]
[Black "DreamsAreFake"]
[Result "1-0"]
[WhiteElo "2926"]
[BlackElo "2761"]
[TimeControl "180+1"]
[EndTime "14:39:57 PDT"]
[Termination "Kacparov won by resignation"]

1. e4 {[%clk 0:03:00.9]} 1... c6 {[%clk 0:03:00.5]} 2. d4 {[%clk 0:03:00.4]}
2... d5 {[%clk 0:03:01.2]} 3. e5 {[%clk 0:02:58.8]} 3... c5 {[%clk 0:03:01.8]}
4. dxc5 {[%clk 0:02:58]} 4... e6 {[%clk 0:03:02]} 5. Be3 {[%clk 0:02:56.9]} 5...
Nd7 {[%clk 0:02:56.2]} 6. Bb5 {[%clk 0:02:55.8]} 6... Qc7 {[%clk 0:02:55.7]} 7.
Nf3 {[%clk 0:02:49.5]} 7... Bxc5 {[%clk 0:02:55.4]} 8. Bxc5 {[%clk 0:02:48.7]}
8... Qxc5 {[%clk 0:02:56.3]} 9. Nc3 {[%clk 0:02:47.3]} 9... Ne7 {[%clk
0:02:56.9]} 10. Qd4 {[%clk 0:02:41.4]} 10... Qc7 {[%clk 0:02:46.9]} 11. O-O-O
{[%clk 0:02:38.4]} 11... O-O {[%clk 0:02:44.8]} 12. Bxd7 {[%clk 0:02:23.6]}
12... Bxd7 {[%clk 0:02:45.7]} 13. Kb1 {[%clk 0:02:19.6]} 13... Rfc8 {[%clk
0:02:42.4]} 14. h4 {[%clk 0:02:17.4]} 14... Qa5 {[%clk 0:02:39.4]} 15. Nd2
{[%clk 0:02:11.3]} 15... Nf5 {[%clk 0:02:10.4]} 16. Qd3 {[%clk 0:02:03]} 16...
d4 {[%clk 0:02:09.6]} 17. Nb3 {[%clk 0:01:57.9]} 17... Qxe5 {[%clk 0:02:09]} 18.
Nxd4 {[%clk 0:01:57.7]} 18... Nxd4 {[%clk 0:02:07.7]} 19. Qxd4 {[%clk
0:01:58.1]} 19... Qxd4 {[%clk 0:02:08.2]} 20. Rxd4 {[%clk 0:01:59]} 20... Bc6
{[%clk 0:02:09.1]} 21. f3 {[%clk 0:01:56.5]} 21... Rd8 {[%clk 0:02:07.9]} 22.
Rhd1 {[%clk 0:01:55.7]} 22... Rxd4 {[%clk 0:02:07.1]} 23. Rxd4 {[%clk
0:01:56.6]} 23... Kf8 {[%clk 0:02:07.5]} 24. b4 {[%clk 0:01:53.9]} 24... e5
{[%clk 0:01:59.5]} 25. Rd2 {[%clk 0:01:51.7]} 25... f6 {[%clk 0:01:51.7]} 26. a4
{[%clk 0:01:43.8]} 26... Rc8 {[%clk 0:01:51.8]} 27. Kb2 {[%clk 0:01:41.4]} 27...
Be8 {[%clk 0:01:52.1]} 28. g3 {[%clk 0:01:26.1]} 28... Ke7 {[%clk 0:01:42.3]}
29. Nd5+ {[%clk 0:01:25.2]} 29... Ke6 {[%clk 0:01:42.7]} 30. b5 {[%clk
0:01:19.5]} 30... a6 {[%clk 0:01:13.2]} 31. Nb6 {[%clk 0:01:15.5]} 31... Rc5
{[%clk 0:01:12.1]} 32. c4 {[%clk 0:01:02]} 32... Ke7 {[%clk 0:00:40.6]} 33. Kb3
{[%clk 0:00:58.3]} 33... a5 {[%clk 0:00:41]} 34. Kc3 {[%clk 0:00:49.9]} 34... h6
{[%clk 0:00:38.4]} 35. f4 {[%clk 0:00:48]} 35... exf4 {[%clk 0:00:37.3]} 36.
Nd5+ {[%clk 0:00:46.7]} 36... Kf7 {[%clk 0:00:36.1]} 37. Kd4 {[%clk 0:00:45.8]}
37... Rc8 {[%clk 0:00:35.5]} 38. gxf4 {[%clk 0:00:45.7]} 38... Bd7 {[%clk
0:00:35.6]} 39. Nb6 {[%clk 0:00:41.3]} 39... Rc7 {[%clk 0:00:35.3]} 40. c5
{[%clk 0:00:38.3]} 40... Bf5 {[%clk 0:00:33]} 41. Kd5 {[%clk 0:00:36.4]} 41...
g5 {[%clk 0:00:31.1]} 42. hxg5 {[%clk 0:00:36.2]} 42... hxg5 {[%clk 0:00:31.1]}
43. fxg5 {[%clk 0:00:36.4]} 43... Re7 {[%clk 0:00:22.4]} 44. Kd6 {[%clk
0:00:25.8]} 44... Re4 {[%clk 0:00:19.8]} 45. Rf2 {[%clk 0:00:22.9]} 45... Re6+
{[%clk 0:00:17.2]} 46. Kc7 {[%clk 0:00:22.8]} 46... Re7+ {[%clk 0:00:17.4]} 47.
Kb8 {[%clk 0:00:22.7]} 47... Re5 {[%clk 0:00:11.6]} 48. c6 {[%clk 0:00:19.7]}
48... bxc6 {[%clk 0:00:10.2]} 49. bxc6 {[%clk 0:00:20.6]} 49... Re8+ {[%clk
0:00:09.1]} 50. Kb7 {[%clk 0:00:20.4]} 50... Re7+ {[%clk 0:00:09.7]} 51. c7
{[%clk 0:00:19.9]} 51... Kg6 {[%clk 0:00:07]} 52. gxf6 {[%clk 0:00:19.8]} 52...
Kxf6 {[%clk 0:00:07.6]} 53. Nd5+ {[%clk 0:00:18.9]} 1-0

[Event "Late-Titled-Tuesday-Blitz-May-14-2024"]
[Site "Chess.com"]
[Date "2024.05.14"]
[Round "4"]
[White "Umumba_FM"]
[Black "Godzillator"]
[Result "1-0"]
[WhiteElo "2673"]
[BlackElo "2423"]
[TimeControl "180+1"]
[EndTime "14:40:01 PDT"]
[Termination "Umumba_FM won on time"]

1. Nc3 {[%clk 0:03:00.9]} 1... d5 {[%clk 0:02:59.8]} 2. e4 {[%clk 0:03:00.3]}
2... c6 {[%clk 0:02:59.5]} 3. Qf3 {[%clk 0:02:59.8]} 3... d4 {[%clk 0:02:57]} 4.
Bc4 {[%clk 0:02:59.1]} 4... e6 {[%clk 0:02:55.7]} 5. Nce2 {[%clk 0:02:58.8]}
5... c5 {[%clk 0:02:55.8]} 6. d3 {[%clk 0:02:58.3]} 6... Nc6 {[%clk 0:02:56]} 7.
Qg3 {[%clk 0:02:58.4]} 7... a6 {[%clk 0:02:49.9]} 8. a4 {[%clk 0:02:58.1]} 8...
g6 {[%clk 0:02:48.1]} 9. f4 {[%clk 0:02:57.7]} 9... Bg7 {[%clk 0:02:48]} 10. Nf3
{[%clk 0:02:58.1]} 10... Nge7 {[%clk 0:02:45.4]} 11. O-O {[%clk 0:02:58.3]}
11... O-O {[%clk 0:02:39]} 12. Bd2 {[%clk 0:02:55.9]} 12... Qc7 {[%clk
0:02:38.7]} 13. h4 {[%clk 0:02:52]} 13... Bd7 {[%clk 0:02:21.3]} 14. h5 {[%clk
0:02:48.5]} 14... Rab8 {[%clk 0:02:16.3]} 15. hxg6 {[%clk 0:02:47.7]} 15... hxg6
{[%clk 0:02:14.6]} 16. Kf2 {[%clk 0:02:47.3]} 16... e5 {[%clk 0:02:07.7]} 17.
Rh1 {[%clk 0:02:40.7]} 17... b5 {[%clk 0:02:03]} 18. axb5 {[%clk 0:02:37.6]}
18... axb5 {[%clk 0:02:02.6]} 19. Qh4 {[%clk 0:02:27.9]} 19... Rfe8 {[%clk
0:02:02]} 20. Qh7+ {[%clk 0:02:23.3]} 20... Kf8 {[%clk 0:02:02.2]} 21. Ba2
{[%clk 0:01:54.8]} 21... c4 {[%clk 0:01:59.2]} 22. f5 {[%clk 0:01:43.7]} 22...
gxf5 {[%clk 0:01:53.1]} 23. Bh6 {[%clk 0:01:43.6]} 23... Ng6 {[%clk 0:01:36.1]}
24. Qxg7+ {[%clk 0:01:38.7]} 24... Ke7 {[%clk 0:01:36.5]} 25. Bg5+ {[%clk
0:01:35]} 25... Kd6 {[%clk 0:01:35.5]} 26. Qxf7 {[%clk 0:01:31.3]} 26... Re6
{[%clk 0:01:28.2]} 27. dxc4 {[%clk 0:01:07.8]} 27... Rf8 {[%clk 0:01:23.4]} 28.
c5+ {[%clk 0:01:01.8]} 28... Kxc5 {[%clk 0:01:23.5]} 29. Qg7 {[%clk 0:00:48.2]}
29... fxe4 {[%clk 0:01:02.1]} 30. Bxe6 {[%clk 0:00:41.9]} 30... exf3 {[%clk
0:01:02.3]} 31. gxf3 {[%clk 0:00:36.4]} 31... e4 {[%clk 0:00:40.5]} 32. Qxd7
{[%clk 0:00:21.9]} 32... Rxf3+ {[%clk 0:00:39.9]} 33. Ke1 {[%clk 0:00:21.8]}
33... Qxd7 {[%clk 0:00:38]} 34. Bxd7 {[%clk 0:00:21.9]} 34... Nce5 {[%clk
0:00:38.3]} 35. Be8 {[%clk 0:00:17]} 35... d3 {[%clk 0:00:35.9]} 36. Bxg6 {[%clk
0:00:17.3]} 36... Nxg6 {[%clk 0:00:36.1]} 37. cxd3 {[%clk 0:00:17.2]} 37... exd3
{[%clk 0:00:36.4]} 38. Nc3 {[%clk 0:00:17.7]} 38... Ne5 {[%clk 0:00:33.1]} 39.
Bd2 {[%clk 0:00:17.5]} 39... Nc4 {[%clk 0:00:29]} 40. b3 {[%clk 0:00:16.6]}
40... Ne5 {[%clk 0:00:21.7]} 41. Ra8 {[%clk 0:00:16.6]} 41... b4 {[%clk
0:00:20.5]} 42. Rc8+ {[%clk 0:00:16.2]} 42... Kd6 {[%clk 0:00:16.3]} 43. Nb5+
{[%clk 0:00:16.6]} 43... Kd7 {[%clk 0:00:16.1]} 44. Rc5 {[%clk 0:00:15.4]} 44...
Ng4 {[%clk 0:00:14.4]} 45. Rg5 {[%clk 0:00:14.2]} 45... Nf2 {[%clk 0:00:09.5]}
46. Rh7+ {[%clk 0:00:13.5]} 46... Ke6 {[%clk 0:00:08.3]} 47. Rh6+ {[%clk
0:00:13.7]} 47... Kf7 {[%clk 0:00:08.2]} 48. Rc5 {[%clk 0:00:12.4]} 48... Ne4
{[%clk 0:00:07.3]} 49. Rc7+ {[%clk 0:00:12.6]} 49... Kg8 {[%clk 0:00:06.9]} 50.
Rg6+ {[%clk 0:00:12.8]} 50... Kh8 {[%clk 0:00:05.6]} 51. Bh6 {[%clk 0:00:12.2]}
51... d2+ {[%clk 0:00:01.5]} 52. Bxd2 {[%clk 0:00:11.8]} 1-0

[Event "Late-Titled-Tuesday-Blitz-May-14-2024"]
[Site "Chess.com"]
[Date "2024.05.14"]
[Round "4"]
[White "Yaacovn"]
[Black "ChadBiryani"]
[Result "0-1"]
[WhiteElo "2753"]
[BlackElo "2562"]
[TimeControl "180+1"]
[EndTime "14:40:02 PDT"]
[Termination "ChadBiryani won by resignation"]

1. d4 {[%clk 0:02:45.9]} 1... d5 {[%clk 0:02:58.9]} 2. Nf3 {[%clk 0:02:06.6]}
2... Bf5 {[%clk 0:02:58]} 3. c3 {[%clk 0:02:05.6]} 3... c6 {[%clk 0:02:57.4]} 4.
Bf4 {[%clk 0:01:04.6]} 4... Nd7 {[%clk 0:02:55]} 5. e3 {[%clk 0:01:04]} 5...
Ngf6 {[%clk 0:02:53.5]} 6. Nbd2 {[%clk 0:01:03]} 6... h6 {[%clk 0:02:47.8]} 7.
Ne5 {[%clk 0:01:01.6]} 7... e6 {[%clk 0:02:44.8]} 8. Be2 {[%clk 0:01:01.6]} 8...
Nxe5 {[%clk 0:02:41.7]} 9. Bxe5 {[%clk 0:01:01.6]} 9... Bd6 {[%clk 0:02:41.5]}
10. Bg3 {[%clk 0:01:01.8]} 10... O-O {[%clk 0:02:41.1]} 11. Rc1 {[%clk
0:01:00.6]} 11... Re8 {[%clk 0:02:40.4]} 12. Qb3 {[%clk 0:01:00]} 12... b5
{[%clk 0:02:37]} 13. a4 {[%clk 0:00:58.8]} 13... a6 {[%clk 0:02:36.4]} 14. Bxd6
{[%clk 0:00:58.6]} 14... Qxd6 {[%clk 0:02:35.7]} 15. O-O {[%clk 0:00:59.5]}
15... Reb8 {[%clk 0:02:30.2]} 16. axb5 {[%clk 0:00:59.1]} 16... axb5 {[%clk
0:02:24.7]} 17. Ra1 {[%clk 0:00:58.8]} 17... Nd7 {[%clk 0:02:23.9]} 18. Qb4
{[%clk 0:00:58.7]} 18... Qc7 {[%clk 0:02:19.9]} 19. Nb3 {[%clk 0:00:56.4]} 19...
e5 {[%clk 0:02:12.8]} 20. h3 {[%clk 0:00:55.9]} 20... Bc2 {[%clk 0:01:52]} 21.
Nc5 {[%clk 0:00:54.8]} 21... exd4 {[%clk 0:01:34.7]} 22. cxd4 {[%clk 0:00:54.4]}
22... Qd8 {[%clk 0:01:01.8]} 23. Rfc1 {[%clk 0:00:48.4]} 23... Bf5 {[%clk
0:01:00.9]} 24. Rxa8 {[%clk 0:00:39.5]} 24... Rxa8 {[%clk 0:01:01.8]} 25. Nb7
{[%clk 0:00:39.7]} 25... Qc7 {[%clk 0:00:50.7]} 26. Nd6 {[%clk 0:00:37.3]} 26...
Bg6 {[%clk 0:00:46.2]} 27. Bg4 {[%clk 0:00:32.7]} 27... Nf6 {[%clk 0:00:41.4]}
28. Qc5 {[%clk 0:00:24.2]} 28... Nxg4 {[%clk 0:00:27.4]} 29. hxg4 {[%clk
0:00:25.1]} 29... Ra6 {[%clk 0:00:23.3]} 30. Nxb5 {[%clk 0:00:23.8]} 30... Qa5
{[%clk 0:00:23.9]} 31. Nd6 {[%clk 0:00:20.5]} 31... Qd2 {[%clk 0:00:21.2]} 32.
Qc3 {[%clk 0:00:19.3]} 32... Qe2 {[%clk 0:00:20.9]} 33. Re1 {[%clk 0:00:18.8]}
33... Qxg4 {[%clk 0:00:20.7]} 34. b4 {[%clk 0:00:17.2]} 34... Ra2 {[%clk
0:00:14.2]} 35. Qxc6 {[%clk 0:00:14.7]} 35... Qh4 {[%clk 0:00:13.9]} 36. Rf1
{[%clk 0:00:12.3]} 36... Bd3 {[%clk 0:00:12.7]} 37. Qe8+ {[%clk 0:00:11.5]}
37... Kh7 {[%clk 0:00:12.6]} 38. Qxf7 {[%clk 0:00:11.4]} 38... Bxf1 {[%clk
0:00:11.2]} 39. Qf5+ {[%clk 0:00:10.2]} 39... Kh8 {[%clk 0:00:10.4]} 40. Qf8+
{[%clk 0:00:09.6]} 40... Kh7 {[%clk 0:00:10.6]} 41. Qf5+ {[%clk 0:00:09.9]}
41... Kh8 {[%clk 0:00:10.3]} 42. Qf8+ {[%clk 0:00:07.6]} 42... Kh7 {[%clk
0:00:10.5]} 43. Ne8 {[%clk 0:00:06.8]} 43... Qg5 {[%clk 0:00:05.9]} 44. Kxf1
{[%clk 0:00:06.4]} 44... Ra1+ {[%clk 0:00:05.8]} 45. Ke2 {[%clk 0:00:06.4]}
45... Qg4+ {[%clk 0:00:06]} 46. Kd2 {[%clk 0:00:05.1]} 46... Qd1+ {[%clk
0:00:05.7]} 47. Kc3 {[%clk 0:00:05.2]} 47... Rc1+ {[%clk 0:00:05.4]} 48. Kb2
{[%clk 0:00:05.3]} 48... Qc2+ {[%clk 0:00:06.1]} 0-1